bitfinex/quotes_BTCUSD_20250802
["timestamp","ask_amount","ask_price","bid_price","bid_amount"]
[1754172210312,0.04478935,113180.0,113170.0,0.27296884]
[1754172210777,0.05862187,113180.0,113170.0,0.045776]
[1754172211030,0.08656626,113180.0,113160.0,0.02875]
[1754172211275,0.05862159,113180.0,113170.0,0.13852]
[1754172211517,0.05862159,113180.0,113170.0,0.25785284]
[1754172211742,0.05762159,113180.0,113170.0,0.25885284]
[1754172211968,0.05762159,113180.0,113170.0,0.28473812]
[1754172212428,0.04932283,113180.0,113170.0,0.28473812]
[1754172213144,0.05032283,113180.0,113170.0,0.28473812]
[1754172213585,0.04932283,113180.0,113170.0,0.28473812]
[1754172213801,0.05761986,113180.0,113170.0,0.28473812]
[1754172214235,0.04932283,113180.0,113170.0,0.28473812]
[1754172214462,0.04932283,113180.0,113170.0,0.28673812]
[1754172218264,0.04932283,113180.0,113170.0,0.02888528]
[1754172218486,0.07726722,113180.0,113170.0,0.14152]
[1754172219162,0.41726722,113180.0,113170.0,0.14052]
[1754172219594,0.41726722,113180.0,113170.0,0.13852]
[1754172219822,0.41726722,113180.0,113170.0,0.13952]
[1754172220006,0.38932283,113180.0,113170.0,0.13952]
[1754172220188,0.38932283,113180.0,113170.0,0.156347]
[1754172220744,0.38932283,113180.0,113170.0,0.181907]
[1754172221190,0.07589683,113180.0,113170.0,0.27567984]
[1754172221875,0.07589683,113180.0,113170.0,0.017827]
[1754172222076,0.07589683,113180.0,113170.0,0.13952]
[1754172222960,0.07589683,113180.0,113170.0,0.001]
[1754172223171,0.07589683,113180.0,113170.0,0.13952]
[1754172223600,0.07589683,113180.0,113170.0,0.16508]
[1754172223808,0.07589683,113180.0,113170.0,0.02656]
[1754172224000,0.07589683,113180.0,113170.0,0.16508]
[1754172224129,0.07589683,113180.0,113170.0,0.181907]
[1754172224820,0.07589683,113180.0,113170.0,0.187047]
[1754172226002,0.08419041,113180.0,113170.0,0.187047]
[1754172228595,0.0841911,113180.0,113170.0,0.187047]
[1754172228807,0.07589683,113180.0,113170.0,0.187047]
[1754172229026,0.04932283,113180.0,113170.0,0.27567984]
[1754172232491,0.04932283,113180.0,113170.0,0.048527]
[1754172232708,0.04932283,113180.0,113170.0,0.16823]
[1754172233338,0.04932283,113180.0,113170.0,0.17018]
[1754172233553,0.01383252,113180.0,113170.0,0.25881284]
[1754172233784,0.13848,113220.0,113170.0,0.25881284]
[1754172233996,0.34,113210.0,113180.0,0.11959171]
[1754172234228,0.026567,113200.0,113190.0,0.16723]
[1754172234475,0.03485622,113200.0,113190.0,0.16918]
[1754172234704,0.03485622,113200.0,113190.0,0.19496128]
[1754172234923,0.01744902,113220.0,113190.0,0.19496128]
[1754172235133,0.05230399,113220.0,113200.0,0.02794]
[1754172235344,0.05530399,113220.0,113200.0,0.02499]
[1754172235573,0.05230399,113220.0,113210.0,0.00295]
[1754172235827,0.05230399,113220.0,113210.0,0.02794]
[1754172236493,0.05330399,113220.0,113210.0,0.02794]
[1754172237188,0.05427399,113220.0,113210.0,0.02194]
[1754172237702,0.03682497,113220.0,113210.0,0.02391]
[1754172238040,0.01025897,113220.0,113210.0,0.02391]
[1754172238750,0.01125897,113220.0,113210.0,0.02391]
[1754172239231,0.01125897,113220.0,113210.0,0.02499]
[1754172239460,0.01025897,113220.0,113210.0,0.041632]
[1754172240329,0.36408752,113220.0,113210.0,0.041632]
[1754172241424,0.35579855,113220.0,113210.0,0.041632]
[1754172243362,0.35579855,113220.0,113210.0,0.043602]
[1754172243575,0.35579855,113220.0,113210.0,0.046552]
[1754172247452,0.35579855,113220.0,113210.0,0.196552]
[1754172248735,0.35382855,113220.0,113210.0,0.196552]
[1754172250940,0.01382855,113220.0,113210.0,0.196552]
[1754172252048,0.01382855,113220.0,113210.0,0.197552]
[1754172252512,0.01382855,113220.0,113210.0,0.198552]
[1754172258813,0.01579855,113220.0,113210.0,0.195602]
[1754172259067,0.03589757,113220.0,113210.0,0.307042]
[1754172259303,0.04416798,113220.0,113210.0,0.307042]
[1754172259538,0.04416798,113220.0,113210.0,0.168642]
[1754172259802,0.5502252,113220.0,113210.0,0.15]
[1754172260029,4.91439269,113220.0,113210.0,0.15]
[1754172260254,4.91439269,113220.0,113210.0,0.14557385]
[1754172261316,4.88673547,113220.0,113210.0,0.14557385]
[1754172261739,4.90428821,113220.0,113210.0,0.14557385]
[1754172262529,4.90528821,113220.0,113210.0,0.14557385]
[1754172262949,4.90428821,113220.0,113210.0,0.14557385]
[1754172263157,4.90328821,113220.0,113210.0,0.14557385]
[1754172263362,4.90828821,113220.0,113210.0,0.14557385]
[1754172264984,4.74797372,113220.0,113210.0,0.18635124]
[1754172265194,4.74797372,113220.0,113210.0,0.19164124]
[1754172265412,4.74797372,113220.0,113210.0,0.18635124]
[1754172265599,4.74797372,113220.0,113210.0,0.14557385]
[1754172265600,4.74822372,113220.0,113210.0,0.14557385]
[1754172266149,4.74922372,113220.0,113210.0,0.14557385]
[1754172266308,4.74622372,113220.0,113210.0,0.14557385]
[1754172266530,4.74722372,113220.0,113210.0,0.14557385]
[1754172266754,4.74522372,113220.0,113210.0,0.14557385]
[1754172266958,4.74622372,113220.0,113210.0,0.14557385]
[1754172267328,4.77279172,113220.0,113210.0,0.14557385]
[1754172267930,4.77279172,113220.0,113210.0,0.16275323]
[1754172268121,0.42788872,113220.0,113210.0,0.14557385]
[1754172268346,4.77279172,113220.0,113210.0,0.14557385]
[1754172271374,4.77279646,113220.0,113210.0,0.14557385]
[1754172271582,4.77054646,113220.0,113210.0,0.17179385]
[1754172272953,4.77054646,113220.0,113210.0,0.18929424]
[1754172273159,4.75399372,113220.0,113210.0,0.18929424]
[1754172274404,4.75399372,113220.0,113210.0,0.19137424]
[1754172274621,4.89038372,113220.0,113210.0,0.19458424]
[1754172275022,4.51910615,113220.0,113210.0,0.19458424]
[1754172275458,4.53293543,113220.0,113210.0,0.19458424]
[1754172276114,4.39457543,113220.0,113210.0,0.19458424]
[1754172276324,0.68803243,113220.0,113210.0,0.19458424]
[1754172277161,0.70548145,113220.0,113210.0,0.19458424]
[1754172278994,0.56712145,113220.0,113210.0,0.19458424]
[1754172279205,0.70548145,113220.0,113210.0,0.19458424]
[1754172279420,0.20548145,113220.0,113210.0,0.19458424]
[1754172279633,0.56712145,113220.0,113210.0,0.33294424]
[1754172282798,0.04967243,113220.0,113210.0,0.33294424]
[1754172283006,0.02310443,113220.0,113210.0,0.33294424]
[1754172283429,0.01482928,113220.0,113210.0,0.33294424]
[1754172284063,0.01482928,113220.0,113210.0,0.33394424]
[1754172284907,0.01382928,113220.0,113210.0,0.33394424]
[1754172285331,0.01382928,113220.0,113210.0,0.33494424]
[1754172290274,0.0074,113220.0,113210.0,0.42357708]
[1754172295686,0.03555947,113230.0,113210.0,0.42357708]
[1754172295944,0.03555947,113230.0,113210.0,0.39414708]
[1754172296165,0.03555947,113230.0,113220.0,0.02817]
[1754172296384,0.03555947,113230.0,113220.0,0.04114513]
[1754172297519,0.03655947,113230.0,113220.0,0.04114513]
[1754172298289,0.03555947,113230.0,113220.0,0.04114513]
[1754172298512,0.03555947,113230.0,113220.0,0.04214513]
[1754172299617,0.03555947,113230.0,113220.0,0.04314513]
[1754172300059,0.03555947,113230.0,113220.0,0.18138513]
[1754172303274,0.03753947,113230.0,113220.0,0.04314513]
[1754172303481,0.03753947,113230.0,113220.0,0.15123513]
[1754172303717,0.06814669,113230.0,113220.0,0.15123513]
[1754172303921,0.06814669,113230.0,113220.0,0.01299513]
[1754172304186,0.09471069,113230.0,113220.0,0.01299513]
[1754172304596,0.09471069,113230.0,113220.0,0.01199513]
[1754172304796,0.09471069,113230.0,113220.0,0.01099513]
[1754172305022,0.44228254,113230.0,113220.0,0.01099513]
[1754172305271,0.41337532,113230.0,113220.0,0.03607513]
[1754172305494,0.40510347,113230.0,113220.0,0.04114513]
[1754172305693,0.40312347,113230.0,113220.0,0.04114513]
[1754172305905,0.37655947,113230.0,113220.0,0.04114513]
[1754172308508,0.001,113230.0,113220.0,0.04114513]
[1754172309361,0.003658,113230.0,113220.0,0.04114513]
[1754172309569,0.03407664,113230.0,113220.0,0.04114513]
[1754172310232,0.03407664,113230.0,113220.0,0.04214513]
[1754172310431,0.03307664,113230.0,113220.0,0.04214513]
[1754172310897,0.03307664,113230.0,113220.0,0.04314513]
[1754172311339,0.04135979,113230.0,113220.0,0.04314513]
[1754172313861,0.04136515,113230.0,113220.0,0.04314513]
[1754172318389,0.04730515,113230.0,113220.0,0.01299513]
[1754172318596,0.41496237,113230.0,113220.0,0.01299513]
[1754172318818,0.44152637,113230.0,113220.0,0.01299513]
[1754172319468,0.44152637,113230.0,113220.0,0.01099513]
[1754172319935,0.58068637,113230.0,113220.0,0.01099513]
[1754172323138,0.59813539,113230.0,113220.0,0.01099513]
[1754172325962,0.57047817,113230.0,113220.0,0.01099513]
[1754172326873,0.56876817,113230.0,113220.0,0.01099513]
[1754172327324,0.70902915,113230.0,113220.0,0.03694513]
[1754172327539,0.70902915,113230.0,113220.0,0.04005513]
[1754172331307,0.70654915,113230.0,113220.0,0.04005513]
[1754172331733,0.70654605,113230.0,113220.0,0.04005513]
[1754172332605,0.70654605,113230.0,113220.0,0.04214513]
[1754172332817,0.40644605,113230.0,113220.0,0.04214513]
[1754172334159,0.40644748,113230.0,113220.0,0.04214513]
[1754172339481,0.03988348,113230.0,113220.0,0.04214513]
[1754172340553,0.03988348,113230.0,113220.0,0.04314513]
[1754172340992,0.03888348,113230.0,113220.0,0.04314513]
[1754172341448,0.03888348,113230.0,113220.0,0.04414513]
[1754172341660,0.03888348,113230.0,113220.0,0.04314513]
[1754172342126,0.03888348,113230.0,113220.0,0.04214513]
[1754172342345,0.03888348,113230.0,113220.0,0.04414513]
[1754172342561,0.03888348,113230.0,113220.0,0.04614513]
[1754172344372,0.03059664,113230.0,113220.0,0.04614513]
[1754172345525,0.03059664,113230.0,113220.0,0.13477797]
[1754172359660,0.03059664,113230.0,113220.0,0.13698606]
[1754172361598,0.19591095,113240.0,113220.0,0.13698606]
[1754172361851,0.664599,113250.0,113230.0,0.13792]
[1754172362066,0.664599,113250.0,113230.0,0.19596061]
[1754172362067,0.01577602,113240.0,113230.0,0.19596061]
[1754172362256,0.02210701,113240.0,113230.0,0.25910345]
[1754172362511,0.01382602,113240.0,113230.0,0.25910345]
[1754172362694,0.01382602,113240.0,113230.0,0.28459345]
[1754172363139,0.01382602,113240.0,113230.0,0.28473705]
[1754172363352,0.04489825,113240.0,113230.0,0.28473705]
[1754172363783,0.01382602,113240.0,113230.0,0.28573705]
[1754172363994,0.01382602,113240.0,113230.0,0.28673705]
[1754172364904,0.01382602,113240.0,113230.0,0.28573705]
[1754172365357,0.01382602,113240.0,113230.0,0.28673705]
[1754172365794,0.01382602,113240.0,113230.0,0.28873705]
[1754172367848,0.05046412,113240.0,113230.0,0.28873705]
[1754172368360,0.01382602,113240.0,113230.0,0.28873705]
[1754172371017,0.04620324,113240.0,113230.0,0.16947421]
[1754172371699,0.01802602,113240.0,113230.0,0.16947421]
[1754172372162,0.05454132,113240.0,113230.0,0.16947421]
[1754172372374,0.01802602,113240.0,113230.0,0.16947421]
[1754172373544,0.01577602,113240.0,113230.0,0.19496421]
[1754172377016,0.05093572,113240.0,113230.0,0.19496421]
[1754172379263,0.05922319,113240.0,113230.0,0.19496421]
[1754172383705,0.05922319,113240.0,113230.0,0.19792421]
[1754172386323,0.05922319,113240.0,113230.0,0.20005421]
[1754172387855,0.06035319,113240.0,113230.0,0.03163421]
[1754172388072,0.44770943,113240.0,113230.0,0.0041436]
[1754172388287,4.79261572,113240.0,113230.0,0.0041436]
[1754172388524,4.7649585,113240.0,113230.0,0.0041436]
[1754172389154,4.7649585,113240.0,113230.0,0.0021436]
[1754172389583,4.7659585,113240.0,113230.0,0.0001436]
[1754172391949,4.7925215,113240.0,113230.0,0.0001436]
[1754172394164,4.7913915,113240.0,113230.0,0.0001436]
[1754172398461,4.7891415,113240.0,113230.0,0.0001436]
[1754172399124,4.7891415,113240.0,113230.0,0.0250136]
[1754172399363,4.7867015,113240.0,113230.0,0.0250136]
[1754172405624,0.4417985,113240.0,113230.0,0.0250136]
[1754172405905,4.7867015,113240.0,113230.0,0.0250136]
[1754172407764,4.78669449,113240.0,113230.0,0.0250136]
[1754172407993,4.92433449,113240.0,113230.0,0.0250136]
[1754172415776,0.57943149,113240.0,113230.0,0.0250136]
[1754172416001,0.57943149,113240.0,113230.0,0.0303836]
[1754172416455,0.55995247,113240.0,113230.0,0.0303836]
[1754172416743,0.55995247,113240.0,113230.0,0.04159267]
[1754172416966,0.56206247,113240.0,113230.0,0.03622267]
[1754172417188,4.93462269,113240.0,113230.0,0.03622267]
[1754172417409,4.95121219,113240.0,113230.0,0.0250136]
[1754172417625,4.95121219,113240.0,113230.0,0.0260136]
[1754172418265,4.95021219,113240.0,113230.0,0.0250136]
[1754172418476,4.92255497,113240.0,113230.0,0.0260136]
[1754172418708,4.92255497,113240.0,113230.0,0.0250136]
[1754172419133,4.92355497,113240.0,113230.0,0.0250136]
[1754172423005,4.94100399,113240.0,113230.0,0.0250136]
[1754172423413,4.97105121,113240.0,113230.0,0.0001436]
[1754172423630,0.01744902,113220.0,113210.0,0.14557385]
[1754172423832,0.18195227,113220.0,113210.0,0.14605282]
[1754172424055,4.55690249,113220.0,113210.0,0.14605282]
[1754172424298,4.55690249,113220.0,113210.0,0.1635901]
[1754172424497,4.55663249,113220.0,113210.0,0.1635901]
[1754172424928,4.58320249,113220.0,113210.0,0.1635901]
[1754172425357,4.58108249,113220.0,113210.0,0.1896901]
[1754172427272,4.56449299,113220.0,113210.0,0.1896901]
[1754172427417,4.53683577,113220.0,113210.0,0.17215282]
[1754172427816,4.55339625,113220.0,113210.0,0.17215282]
[1754172428220,4.53683577,113220.0,113210.0,0.17215282]
[1754172429032,4.56688299,113220.0,113210.0,0.14605282]
[1754172429246,4.58343927,113220.0,113210.0,0.14605282]
[1754172430218,4.56888299,113220.0,113210.0,0.14605282]
[1754172431082,4.58543208,113220.0,113210.0,0.14605282]
[1754172431493,4.58843208,113220.0,113210.0,0.14605282]
[1754172434226,4.58816208,113220.0,113210.0,0.14605282]
[1754172434871,4.58843208,113220.0,113210.0,0.14605282]
[1754172435928,4.58816208,113220.0,113210.0,0.14105282]
[1754172438166,4.56050486,113220.0,113210.0,0.14105282]
[1754172438935,4.58816208,113220.0,113210.0,0.14105282]
[1754172441525,4.56050486,113220.0,113210.0,0.14105282]
[1754172442156,4.55838486,113220.0,113210.0,0.16715282]
[1754172442803,4.55838486,113220.0,113210.0,0.14105282]
[1754172442804,4.92817208,113220.0,113210.0,0.14105282]
[1754172443032,5.15398351,113220.0,113190.0,0.0261]
[1754172443252,4.36235202,113200.0,113190.0,0.02624389]
[1754172443471,4.50186202,113200.0,113190.0,0.02624389]
[1754172443727,4.55433182,113200.0,113190.0,0.02624389]
[1754172443941,4.5681629,113200.0,113190.0,0.02624389]
[1754172444382,4.5681629,113200.0,113190.0,0.00014389]
[1754172444651,4.9204329,113200.0,113190.0,0.00014389]
[1754172444867,4.9225629,113200.0,113190.0,0.00014389]
[1754172445096,4.92256353,113200.0,113190.0,0.00014389]
[1754172446659,4.94936486,113200.0,113190.0,0.00014389]
[1754172447991,0.60445748,113200.0,113190.0,0.00014389]
[1754172448211,4.94936048,113200.0,113190.0,0.00014389]
[1754172449554,4.93496048,113200.0,113190.0,0.00014389]
[1754172450189,4.96153848,113200.0,113190.0,0.00014389]
[1754172450646,4.96153848,113200.0,113190.0,0.02605389]
[1754172451500,4.344903,113190.0,113180.0,0.00319]
[1754172451713,4.50707183,113190.0,113180.0,0.0056591]
[1754172452115,4.53364983,113190.0,113180.0,0.0056591]
[1754172453445,4.53364983,113190.0,113180.0,0.0325691]
[1754172453657,4.53364983,113190.0,113180.0,0.0335691]
[1754172453872,4.53365326,113190.0,113180.0,0.0335691]
[1754172454098,4.53365326,113190.0,113180.0,0.04399721]
[1754172454530,4.53365326,113190.0,113180.0,0.0335691]
[1754172457198,4.39629326,113190.0,113180.0,0.0335691]
[1754172457424,4.87361326,113190.0,113180.0,0.0335691]
[1754172457650,0.52871026,113190.0,113180.0,0.0335691]
[1754172458088,0.52871026,113190.0,113180.0,0.0325691]
[1754172458537,0.52871026,113190.0,113180.0,0.04289721]
[1754172459537,0.52871026,113190.0,113180.0,0.04189721]
[1754172460165,0.52871093,113190.0,113180.0,0.04189721]
[1754172465361,0.52683093,113190.0,113180.0,0.04189721]
[1754172465578,0.52675093,113190.0,113180.0,0.04189721]
[1754172465791,0.38951093,113190.0,113180.0,0.04189721]
[1754172471233,0.37485171,113190.0,113180.0,0.04189721]
[1754172473827,0.1372,113200.0,113180.0,0.04189721]
[1754172474060,0.4772,113200.0,113180.0,0.01279721]
[1754172474278,0.4772,113200.0,113190.0,0.0291]
[1754172474501,0.50377,113200.0,113190.0,0.03109]
[1754172474720,0.36657,113200.0,113190.0,0.03109]
[1754172477148,0.35383058,113200.0,113190.0,0.03109]
[1754172478244,0.35383058,113200.0,113190.0,0.03209]
[1754172478470,0.35383058,113200.0,113180.0,0.00489721]
[1754172478678,0.38352058,113200.0,113190.0,0.00307]
[1754172478915,0.38649058,113200.0,113190.0,0.00307]
[1754172479144,0.38352058,113200.0,113190.0,0.00307]
[1754172479363,0.38352058,113200.0,113190.0,0.00207]
[1754172479594,0.35597058,113200.0,113190.0,0.00207]
[1754172480288,0.35597058,113200.0,113190.0,0.00307]
[1754172480506,0.35597058,113200.0,113190.0,0.02891]
[1754172480723,0.35597058,113200.0,113190.0,0.02991]
[1754172481385,0.01383058,113200.0,113190.0,0.03285]
[1754172481818,0.01383058,113200.0,113190.0,0.05043672]
[1754172483785,0.04352058,113200.0,113190.0,0.04749672]
[1754172484663,0.01597058,113200.0,113190.0,0.05043672]
[1754172484882,0.38306457,113220.0,113190.0,0.05043672]
[1754172485101,0.42619003,113220.0,113190.0,0.02459672]
[1754172485369,0.42619003,113220.0,113200.0,0.02584]
[1754172485585,0.00214,113210.0,113200.0,0.03088367]
[1754172485808,0.01041844,113210.0,113200.0,0.03088367]
[1754172486694,0.01041844,113210.0,113200.0,0.03589367]
[1754172486905,0.00214,113210.0,113200.0,0.03589367]
[1754172487129,0.528568,113220.0,113200.0,0.03589367]
[1754172487364,0.6904832,113220.0,113200.0,0.00711367]
[1754172487592,0.0368464,113220.0,113210.0,0.02878]
[1754172487807,0.0082784,113220.0,113210.0,0.03085]
[1754172488247,0.66204,113230.0,113210.0,0.03085]
[1754172488484,0.68686756,113230.0,113210.0,0.03085]
[1754172488709,0.00827585,113230.0,113210.0,0.02791]
[1754172488926,0.00827585,113230.0,113220.0,0.00294]
[1754172489174,0.00827585,113230.0,113220.0,0.00501]
[1754172489175,0.01025585,113230.0,113220.0,0.00501]
[1754172489392,0.01580717,113230.0,113220.0,0.03085]
[1754172489823,0.04632717,113230.0,113220.0,0.00564331]
[1754172490042,0.04632717,113230.0,113220.0,0.00207]
[1754172490275,0.01628584,113230.0,113220.0,0.00207]
[1754172491807,0.01628584,113230.0,113220.0,0.02791]
[1754172495763,0.01628584,113230.0,113220.0,0.02891]
[1754172498272,0.02454683,113230.0,113220.0,0.02891]
[1754172498695,0.01628584,113230.0,113220.0,0.02891]
[1754172498931,4.47068178,113230.0,113220.0,0.001]
[1754172499152,4.41379985,113230.0,113220.0,0.001]
[1754172499365,4.41270663,113230.0,113220.0,0.001]
[1754172499997,4.41270663,113230.0,113200.0,0.02584]
[1754172500212,4.375423,113220.0,113200.0,0.02878]
[1754172500465,0.53878096,113220.0,113200.0,0.02878]
[1754172500673,0.55260961,113220.0,113200.0,0.02878]
[1754172501802,0.55261387,113220.0,113200.0,0.02878]
[1754172502676,0.55261387,113220.0,113200.0,0.04557887]
[1754172502884,0.54434865,113220.0,113200.0,0.04557887]
[1754172503114,0.55261547,113220.0,113200.0,0.04557887]
[1754172503337,0.00214,113210.0,113200.0,0.04470887]
[1754172505272,0.00214,113210.0,113200.0,0.04570887]
[1754172506453,0.0104124,113210.0,113200.0,0.04570887]
[1754172508368,0.0415524,113210.0,113200.0,0.04570887]
[1754172508725,0.0415524,113210.0,113200.0,0.04363887]
[1754172510487,0.04155766,113210.0,113200.0,0.04363887]
[1754172512296,0.03328,113210.0,113200.0,0.04363887]
[1754172512510,0.03328,113210.0,113200.0,0.001]
[1754172512511,4.89108036,113210.0,113200.0,0.001]
[1754172512736,4.93421113,113210.0,113200.0,0.001]
[1754172513393,4.90655391,113210.0,113200.0,0.001]
[1754172513612,4.90655489,113210.0,113200.0,0.001]
[1754172514251,4.90755489,113210.0,113200.0,0.001]
[1754172514604,4.344903,113200.0,113180.0,0.02681]
[1754172514808,0.00208,113190.0,113180.0,0.045645]
[1754172514997,0.03002,113190.0,113180.0,0.045645]
[1754172515977,0.00047837,113190.0,113180.0,0.045645]
[1754172516186,0.00047837,113190.0,113180.0,0.048725]
[1754172516366,0.00047837,113190.0,113180.0,0.049725]
[1754172531273,0.04404969,113200.0,113180.0,0.049725]
[1754172531484,0.04404969,113200.0,113180.0,0.04977262]
[1754172532348,0.04404969,113200.0,113180.0,0.04877262]
[1754172534306,0.05233011,113200.0,113180.0,0.04877262]
[1754172538484,0.07889911,113200.0,113180.0,0.04877262]
[1754172539655,0.06506779,113200.0,113180.0,0.04877262]
[1754172542497,0.081664,113200.0,113180.0,0.04877262]
[1754172543157,0.02744,113190.0,113180.0,0.04877262]
[1754172543366,0.00198,113190.0,113180.0,0.04877262]
[1754172543573,0.02744,113190.0,113180.0,0.04569262]
[1754172544669,0.03064,113190.0,113180.0,0.01773262]
[1754172545264,0.03894113,113190.0,113180.0,0.04396262]
[1754172545439,0.03894113,113190.0,113180.0,0.04601262]
[1754172546880,0.03574113,113190.0,113180.0,0.04601262]
[1754172547316,0.03574113,113190.0,113180.0,0.04907262]
[1754172549414,0.02744,113190.0,113180.0,0.04601262]
[1754172549636,0.04127135,113190.0,113180.0,0.04601262]
[1754172551147,0.02744,113190.0,113180.0,0.04601262]
[1754172552113,0.055229,113200.0,113180.0,0.04907262]
[1754172552241,0.08013135,113200.0,113180.0,0.04907262]
[1754172552932,0.08013135,113200.0,113180.0,0.04807262]
[1754172554106,0.09396225,113200.0,113180.0,0.04807262]
[1754172554572,0.00198,113190.0,113180.0,0.04807262]
[1754172556377,0.00198,113190.0,113180.0,0.04907262]
[1754172558089,0.01581093,113190.0,113180.0,0.04907262]
[1754172562826,0.04447093,113190.0,113180.0,0.01773262]
[1754172563095,4.42533195,113190.0,113180.0,0.00104762]
[1754172563295,4.46850836,113190.0,113180.0,0.00104762]
[1754172563500,4.60530836,113190.0,113180.0,0.00104762]
[1754172564203,4.93147743,113190.0,113180.0,4.762e-05]
[1754172565561,4.684903,113180.0,113160.0,0.11784762]
[1754172565758,0.002,113170.0,113160.0,0.01519213]
[1754172565985,0.002,113170.0,113160.0,0.00047837]
[1754172566312,0.059045,113170.0,113160.0,0.00047837]
[1754172566910,0.059045,113170.0,113160.0,0.00147837]
[1754172567538,0.08587658,113170.0,113160.0,0.00147837]
[1754172568336,0.09971042,113170.0,113160.0,0.00147837]
[1754172573573,0.23651042,113170.0,113160.0,0.00147837]
[1754172574800,0.23651042,113170.0,113160.0,0.00047837]
[1754172574992,4.58141342,113170.0,113160.0,0.00047837]
[1754172575218,5.04979879,113170.0,113160.0,0.00047837]
[1754172575417,4.96096123,113170.0,113160.0,0.00047837]
[1754172575628,4.97750886,113170.0,113160.0,0.00047837]
[1754172576448,0.6326045,113170.0,113160.0,0.00047837]
[1754172576652,4.9785075,113170.0,113160.0,0.00047837]
[1754172576859,4.9805075,113170.0,113160.0,0.00047837]
[1754172577685,4.344903,113160.0,113130.0,0.01572837]
[1754172577883,0.13676,113150.0,113130.0,0.03097721]
[1754172578353,0.693811,113150.0,113130.0,0.03097721]
[1754172580316,0.666551,113150.0,113130.0,0.03097721]
[1754172580628,0.03247,113140.0,113130.0,0.01524884]
[1754172580845,0.059053,113140.0,113130.0,0.01624884]
[1754172581040,0.059053,113140.0,113130.0,0.01826884]
[1754172581291,0.0728897,113140.0,113130.0,0.01826884]
[1754172581495,0.0728897,113140.0,113130.0,0.04333884]
[1754172581709,0.0696797,113140.0,113130.0,0.04333884]
[1754172582194,0.0696797,113140.0,113130.0,0.04651884]
[1754172582409,0.0138367,113140.0,113130.0,0.04651884]
[1754172582627,0.0138367,113140.0,113130.0,0.13515168]
[1754172582841,0.0138367,113140.0,113130.0,0.13736152]
[1754172583050,0.0138367,113140.0,113130.0,0.13636152]
[1754172583471,0.0138367,113140.0,113130.0,0.13736152]
[1754172583682,0.05388598,113170.0,113130.0,0.13736152]
[1754172583890,0.05388598,113170.0,113140.0,0.25364284]
[1754172584091,0.05388598,113170.0,113160.0,0.00202]
[1754172584550,0.05388598,113170.0,113160.0,0.03027]
[1754172587148,0.02730998,113170.0,113160.0,0.03027]
[1754172587330,0.05388598,113170.0,113160.0,0.03027]
[1754172587800,0.02730998,113170.0,113160.0,0.03027]
[1754172588009,0.05388598,113170.0,113160.0,0.03027]
[1754172589473,0.08114598,113170.0,113160.0,0.03027]
[1754172589967,0.05456998,113170.0,113160.0,0.03027]
[1754172590180,0.08114498,113170.0,113160.0,0.03027]
[1754172594189,0.08314498,113170.0,113160.0,0.03027]
[1754172598281,0.05656998,113170.0,113160.0,0.03027]
[1754172598463,0.0704044,113170.0,113160.0,0.03027]
[1754172599102,0.166506,113180.0,113160.0,0.03027]
[1754172599251,4.344903,113170.0,113160.0,0.03031766]
[1754172599612,0.54069008,113170.0,113160.0,0.03031766]
[1754172600620,0.04069008,113170.0,113160.0,0.03031766]
[1754172601363,0.54069008,113170.0,113160.0,0.03031766]
[1754172602400,0.04069008,113170.0,113160.0,0.03031766]
[1754172603491,0.04282008,113170.0,113160.0,0.03031766]
[1754172604433,0.02898568,113170.0,113160.0,0.03031766]
[1754172613564,0.03728384,113170.0,113160.0,0.03031766]
[1754172619206,0.95076403,113170.0,113160.0,4.766e-05]
[1754172619419,0.53892503,113170.0,113160.0,4.766e-05]
[1754172619633,4.95543357,113170.0,113160.0,4.766e-05]
[1754172619849,0.63013709,113170.0,113160.0,4.766e-05]
[1754172620074,4.98887622,113170.0,113160.0,4.766e-05]
[1754172620290,5.00800638,113170.0,113160.0,4.766e-05]
[1754172620926,5.01000638,113170.0,113160.0,4.766e-05]
[1754172621142,5.00800638,113170.0,113160.0,4.766e-05]
[1754172621359,4.99287622,113170.0,113160.0,4.766e-05]
[1754172621574,5.01197999,113170.0,113160.0,4.766e-05]
[1754172622028,5.01097999,113170.0,113160.0,4.766e-05]
[1754172622245,5.01760361,113170.0,113160.0,4.766e-05]
[1754172622461,5.19432889,113170.0,113160.0,4.766e-05]
[1754172622888,5.12361691,113170.0,113160.0,4.766e-05]
[1754172623809,4.94689163,113170.0,113160.0,4.766e-05]
[1754172624255,4.9330555,113170.0,113160.0,4.766e-05]
[1754172624705,0.01744902,113160.0,113130.0,0.02271766]
[1754172624920,0.00213,113140.0,113130.0,0.02518606]
[1754172625131,0.00213,113140.0,113130.0,0.02822606]
[1754172625556,0.028715,113140.0,113130.0,0.02822606]
[1754172627284,0.04255267,113140.0,113130.0,0.02822606]
[1754172627503,0.04255267,113140.0,113130.0,0.03122606]
[1754172628412,0.04255267,113140.0,113130.0,0.02922606]
[1754172629585,0.04042267,113140.0,113130.0,0.02922606]
[1754172629813,0.01383767,113140.0,113130.0,0.02922606]
[1754172631700,0.06947489,113140.0,113130.0,0.02618606]
[1754172634293,0.166354,113150.0,113130.0,0.02618606]
[1754172634525,0.01497763,113140.0,113130.0,0.02922606]
[1754172634772,0.04116363,113140.0,113130.0,0.02922606]
[1754172634983,0.027326,113140.0,113130.0,0.02922606]
[1754172636294,0.367326,113140.0,113130.0,0.02922606]
[1754172637760,0.88116342,113140.0,113130.0,0.02922606]
[1754172637970,0.38116342,113140.0,113130.0,0.02922606]
[1754172650242,0.38946596,113140.0,113130.0,0.02922606]
[1754172651302,0.40607431,113140.0,113130.0,0.02922606]
[1754172651708,0.43203431,113140.0,113130.0,0.00532606]
[1754172652276,0.43203484,113140.0,113130.0,0.00532606]
[1754172653624,0.43203484,113140.0,113130.0,0.03153606]
[1754172655298,0.40607484,113140.0,113130.0,0.03153606]
[1754172657509,0.38946596,113140.0,113130.0,0.03153606]
[1754172664061,0.38832596,113140.0,113130.0,0.03153606]
[1754172664267,0.51638342,113140.0,113130.0,0.03153606]
[1754172664478,0.52468823,113140.0,113130.0,0.03153606]
[1754172665162,0.51638342,113140.0,113130.0,0.03153606]
[1754172666247,0.38002342,113140.0,113130.0,0.03153606]
[1754172668780,0.35383742,113140.0,113130.0,0.03153606]
[1754172673507,0.689765,113150.0,113130.0,0.03153606]
[1754172673693,0.17978744,113150.0,113130.0,0.03153606]
[1754172673885,0.026584,113140.0,113130.0,0.03153606]
[1754172674110,0.058784,113140.0,113130.0,0.00063606]
[1754172674310,0.058784,113140.0,113130.0,0.00278606]
[1754172675435,0.058784,113140.0,113130.0,0.00378606]
[1754172675436,0.398784,113140.0,113130.0,0.00378606]
[1754172676666,0.398784,113140.0,113130.0,0.00315]
[1754172680368,0.3722,113140.0,113130.0,0.00315]
[1754172681606,0.3722,113140.0,113130.0,0.001]
[1754172685834,0.38050378,113140.0,113130.0,0.001]
[1754172686063,0.38404878,113140.0,113130.0,0.001]